bitfinex-derivatives/quotes_BNBF0:USTF0_20250521
["timestamp","ask_amount","ask_price","bid_price","bid_amount"]
[1747794457826,1.278,650.59,649.73,0.62384432]
[1747794458127,1.278,650.59,649.74,0.62384432]
[1747794458329,1.278,650.59,649.75,0.62384432]
[1747794458521,1.278,650.59,649.76,0.62384432]
[1747794458722,1.278,650.59,649.77,0.62384432]
[1747794458922,1.278,650.59,649.78,0.62384432]
[1747794459127,1.278,650.59,649.79,0.62384432]
[1747794459328,1.278,650.59,649.73,0.30779545]
[1747794459628,1.278,650.59,649.74,0.93171939]
[1747794459823,1.278,650.59,649.75,0.62392334]
[1747794460025,1.278,650.59,649.76,0.62392334]
[1747794460325,1.278,650.59,649.77,0.62392334]
[1747794460522,1.278,650.59,649.78,0.62392334]
[1747794460825,1.278,650.59,649.79,0.93171879]
[1747794461022,1.278,650.59,649.79,0.30779545]
[1747794463228,1.278,650.59,649.8,0.30779545]
[1747794464626,1.278,650.59,649.58,1.119]
[1747794464829,1.278,650.59,649.59,0.6238878]
[1747794465129,1.278,650.59,649.6,0.6238878]
[1747794465428,1.278,650.59,649.61,1.75497377]
[1747794465628,1.278,650.59,649.62,0.6238878]
[1747794465826,1.278,650.59,649.63,1.75497377]
[1747794466022,1.278,650.59,649.64,1.75497377]
[1747794466222,1.278,650.59,649.65,0.6238878]
[1747794466427,0.26768922,650.67,649.66,1.75497377]
[1747794466622,0.26768922,650.67,649.67,1.75497377]
[1747794466825,0.26768922,650.67,649.68,1.75497377]
[1747794467025,0.26768922,650.67,649.69,0.6238878]
[1747794467229,0.26768922,650.67,649.7,0.6238878]
[1747794467428,0.26768922,650.67,649.71,0.6238878]
[1747794467633,0.26768922,650.67,649.72,0.93168432]
[1747794467831,0.26768922,650.67,649.73,0.6238878]
[1747794468032,3.8108132,650.77,649.74,0.6238878]
[1747794468231,3.8108132,650.77,649.72,0.30779652]
[1747794468433,3.8108132,650.77,649.73,0.62386318]
[1747794468635,3.8108132,650.77,649.74,0.62386318]
[1747794468833,3.8108132,650.77,649.72,0.30779652]
[1747794469132,3.8108132,650.77,649.73,0.62375701]
[1747794469334,0.26767584,650.76,649.74,0.62375701]
[1747794469533,0.26767584,650.76,649.73,0.30779652]
[1747794469734,0.26767584,650.76,649.74,0.623749]
[1747794470033,1.216,650.75,649.73,0.30779652]
[1747794470235,1.216,650.75,649.74,0.623749]
[1747794470434,1.216,650.75,649.73,0.30779652]
[1747794470735,1.216,650.75,649.74,0.62374138]
[1747794470936,1.216,650.75,649.73,0.30779652]
[1747794471236,1.216,650.75,649.74,0.62374156]
[1747794471433,1.216,650.75,649.74,0.30779652]
[1747794472235,0.26767789,650.74,649.74,0.30779652]
[1747794473330,0.26767789,650.74,649.75,0.30779652]
[1747794473538,3.8108132,650.63,649.75,0.30779652]
[1747794474737,3.8108132,650.63,649.76,0.30779652]
[1747794476039,3.8108132,650.63,649.77,0.62371053]
[1747794476239,3.8108132,650.63,649.78,0.62371053]
[1747794476435,3.8108132,650.63,649.77,0.30779652]
[1747794476634,3.8108132,650.63,649.78,0.62370381]
[1747794476834,3.8108132,650.63,649.77,0.30779652]
[1747794477038,3.8108132,650.63,649.78,1.76470381]
[1747794477234,3.8108132,650.63,649.78,1.141]
[1747794484143,3.8108132,650.63,649.79,0.62373153]
[1747794484347,3.8108132,650.63,649.8,1.7546984]
[1747794484546,3.8108132,650.63,649.81,1.7546984]
[1747794484747,3.8108132,650.63,649.82,0.62373153]
[1747794484946,3.8108132,650.63,649.83,1.75432197]
[1747794485147,0.99598434,651.76,649.84,0.6233551]
[1747794485345,0.99598434,651.76,649.85,0.6233551]
[1747794485545,0.99598434,651.76,649.86,1.75432197]
[1747794485747,0.99598434,651.76,649.87,0.6233551]
[1747794485947,0.99598434,651.76,649.88,0.6233551]
[1747794486148,0.99598434,651.76,649.89,1.75432197]
[1747794486445,3.8108132,652.09,649.9,0.6233551]
[1747794486649,1.096,651.75,649.91,0.6233551]
[1747794486947,1.096,651.75,649.92,0.6233551]
[1747794487147,1.096,651.75,649.93,0.6233551]
[1747794487349,1.096,651.75,649.9,0.30761657]
[1747794487643,1.096,651.75,649.91,0.62278644]
[1747794487848,1.096,651.75,649.92,0.62278644]
[1747794488152,1.096,651.75,649.93,0.62278644]
[1747794488352,1.096,651.75,649.78,1.141]
[1747794488546,1.096,651.75,649.79,1.75198769]
[1747794488747,1.096,651.75,649.8,0.62277277]
[1747794488949,1.096,651.75,649.81,0.62277277]
[1747794489151,1.096,651.75,649.82,2.05968306]
[1747794489453,1.096,651.75,649.83,0.62277277]
[1747794489648,1.096,651.75,649.84,0.62277277]
[1747794489847,1.096,651.75,649.85,0.62277277]
[1747794490049,1.096,651.75,649.86,1.75198769]
[1747794490252,1.096,651.75,649.87,0.62277277]
[1747794490453,1.096,651.75,649.88,0.62277277]
[1747794490655,1.096,651.75,649.89,0.62277277]
[1747794490855,1.096,651.75,649.9,0.62277277]
[1747794491051,1.096,651.75,649.91,0.62277277]
[1747794491255,1.096,651.75,649.53,0.25340492]
[1747794491457,1.096,651.75,649.54,1.75090124]
[1747794491652,1.096,651.75,649.55,1.75090124]
[1747794491853,1.096,651.75,649.56,0.62238637]
[1747794492056,1.096,651.75,649.57,0.62238637]
[1747794492256,1.096,651.75,649.58,1.75090124]
[1747794492453,1.096,651.75,649.59,0.62238637]
[1747794492754,1.096,651.75,649.6,1.75090124]
[1747794492959,1.096,651.75,649.61,0.62238637]
[1747794493159,1.096,651.75,649.62,1.75090124]
[1747794493464,1.096,651.75,649.63,1.75069925]
[1747794493658,1.096,651.75,649.64,0.62218438]
[1747794493859,1.096,651.75,649.65,0.62218438]
[1747794494064,1.096,651.75,649.66,0.62218438]
[1747794494363,1.096,651.75,649.67,0.62218438]
[1747794494665,1.096,651.75,649.68,1.75069925]
[1747794494864,1.096,651.75,649.69,0.62218438]
[1747794495065,1.096,651.75,649.7,1.75069925]
[1747794495266,1.096,651.75,649.71,0.62201652]
[1747794495462,1.096,651.75,649.72,0.62201652]
[1747794495664,1.096,651.75,649.73,0.92971235]
[1747794495866,1.096,651.75,649.74,0.62201652]
[1747794496167,1.096,651.75,649.75,1.75053139]
[1747794496368,1.096,651.75,649.76,0.62201652]
[1747794496662,1.096,651.75,649.77,1.12851487]
[1747794496967,3.8108132,651.35,649.77,1.4362107]
[1747794497168,3.8108132,651.35,649.77,0.30769583]
[1747794498369,3.8108132,651.35,649.78,0.30769583]
[1747794500172,3.8108132,651.35,649.63,1.576]
[1747794500372,3.8108132,651.35,649.64,0.62260322]
[1747794500571,3.8108132,651.35,649.65,0.62260322]
[1747794500773,3.8108132,651.35,649.66,1.75006243]
[1747794500971,3.8108132,651.35,649.67,0.62260322]
[1747794501169,1.019,651.34,649.68,0.93031592]
[1747794501368,1.019,651.34,649.69,0.62260322]
[1747794501568,1.019,651.34,649.7,0.62260322]
[1747794501771,1.019,651.34,649.71,0.62260322]
[1747794501966,1.019,651.34,649.72,0.62260322]
[1747794502170,1.019,651.34,649.68,0.3077127]
[1747794502372,1.019,651.34,649.73,0.3077127]
[1747794503573,1.019,651.34,649.74,0.3077127]
[1747794504971,1.019,651.34,649.75,0.3077127]
[1747794506281,1.019,651.34,649.63,1.576]
[1747794506580,1.019,651.34,649.64,1.74941654]
[1747794506780,1.019,651.34,649.65,0.62232116]
[1747794507080,1.019,651.34,649.66,0.62232116]
[1747794507275,1.019,651.34,649.67,0.62232116]
[1747794507477,1.019,651.34,649.68,0.62232116]
[1747794507680,1.019,651.34,649.69,0.62232116]
[1747794507877,1.019,651.34,649.7,0.62232116]
[1747794508181,1.019,651.34,649.67,0.30771318]
[1747794508384,1.019,651.34,649.68,0.62228208]
[1747794508583,1.019,651.34,649.69,0.62228208]
[1747794508785,1.019,651.34,649.7,0.62228535]
[1747794508983,1.019,651.34,649.71,0.30771318]
[1747794510584,3.8108132,650.88,649.72,0.30771318]
[1747794511087,3.8108132,650.88,649.73,1.593]
[1747794512485,3.8108132,650.88,649.74,0.30771318]
[1747794513891,3.8108132,650.88,649.75,0.30771318]
[1747794514687,3.8108132,650.88,649.76,0.30771318]
[1747794516089,3.8108132,650.88,649.77,1.12714096]
[1747794516291,3.8108132,650.88,649.78,0.62237793]
[1747794516490,3.8108132,650.88,649.79,0.62237793]
[1747794516790,3.8108132,650.88,649.8,0.62237793]
[1747794517088,3.8108132,650.88,649.81,0.62237793]
[1747794517289,3.8108132,650.88,649.82,0.62239824]
[1747794517489,3.8108132,650.88,649.83,0.62239824]
[1747794517689,3.8108132,650.88,649.79,0.30771318]
[1747794517889,3.8108132,650.88,649.8,0.62241275]
[1747794518090,3.8108132,650.88,649.81,0.62241275]
[1747794518289,3.8108132,650.88,649.82,0.62241275]
[1747794518489,3.8108132,650.88,649.83,0.62241275]
[1747794518690,3.8108132,650.88,649.84,0.62241275]
[1747794518890,3.8108132,650.88,649.8,0.30771318]
[1747794519091,3.8108132,650.88,649.81,0.62243475]
[1747794519290,3.8108132,650.88,649.82,0.62243475]
[1747794519490,3.8108132,650.88,649.8,0.30771318]
[1747794519786,3.8108132,650.88,649.81,0.62247062]
[1747794519991,3.8108132,650.88,649.82,0.62247062]
[1747794520192,3.8108132,650.88,649.81,0.30771318]
[1747794520392,3.8108132,650.88,649.82,0.62248195]
[1747794520588,3.8108132,650.88,649.83,0.93021428]
[1747794520793,3.8108132,650.88,649.83,0.30771318]
[1747794521196,3.8108132,650.88,649.84,0.30771318]
[1747794522796,3.8108132,650.88,649.85,0.30771318]
[1747794523497,1.119,650.87,649.85,0.30771318]
[1747794523797,1.119,650.87,649.73,1.593]
[1747794524097,1.119,650.87,649.74,0.62251457]
[1747794524299,1.119,650.87,649.75,0.62251457]
[1747794524596,1.119,650.87,649.76,1.75252362]
[1747794524792,1.119,650.87,649.77,0.62251457]
[1747794524995,1.119,650.87,649.78,0.62251457]
[1747794525197,1.119,650.87,649.79,0.62251457]
[1747794525397,1.119,650.87,649.8,0.62251457]
[1747794525597,1.119,650.87,649.81,0.62251457]
[1747794525798,1.119,650.87,649.79,0.30773133]
[1747794526698,1.119,650.87,649.54,0.25340492]
[1747794526892,1.119,650.87,649.55,1.75338934]
[1747794527091,1.119,650.87,649.56,0.62268416]
[1747794527292,1.119,650.87,649.57,0.62268416]
[1747794527496,1.119,650.87,649.55,1.13070518]
[1747794527695,1.119,650.87,649.56,1.75343673]
[1747794527897,1.119,650.87,649.57,0.62273155]
[1747794528094,1.119,650.87,649.58,1.75343673]
[1747794528299,1.119,650.87,649.59,1.75343673]
[1747794528501,1.119,650.87,649.6,0.62273155]
[1747794528702,1.119,650.87,649.61,0.62273155]
[1747794529005,1.119,650.87,649.62,1.75343673]
[1747794529198,1.119,650.87,649.63,0.62273155]
[1747794529406,1.119,650.87,649.64,1.75343673]
[1747794529605,1.119,650.87,649.65,0.62273155]
[1747794529905,1.119,650.87,649.66,1.75343673]
[1747794530106,1.119,650.87,649.67,0.62273155]
[1747794530405,1.119,650.87,649.68,0.93048575]
[1747794530705,1.119,650.87,649.69,1.75343673]
[1747794530904,1.119,650.87,649.7,1.75343673]
[1747794531105,1.119,650.87,649.71,0.62283197]
[1747794531306,1.119,650.87,649.72,1.75353715]
[1747794531506,1.119,650.87,649.73,1.75353715]
[1747794531706,1.119,650.87,649.74,0.62283197]
[1747794531905,1.119,650.87,649.72,0.3077542]
[1747794531906,1.119,650.87,649.75,0.62283197]
[1747794532105,1.119,650.87,649.76,0.62283197]
[1747794532301,1.119,650.87,649.77,0.62283197]
[1747794532506,1.119,650.87,649.78,0.62283197]
[1747794532803,1.119,650.87,649.79,0.62293486]
[1747794533107,1.119,650.87,649.6,1.838]
[1747794533307,1.119,650.87,649.61,0.6229844]
[1747794533610,1.119,650.87,649.62,1.75514859]
[1747794533808,1.119,650.87,649.63,0.6229844]
[1747794534009,1.119,650.87,649.64,0.6229844]
[1747794534209,1.119,650.87,649.65,1.75514859]
[1747794534409,1.119,650.87,649.66,0.6229844]
[1747794534610,1.119,650.87,649.67,0.6229844]
[1747794534812,1.119,650.87,649.68,1.75514859]
[1747794535004,1.119,650.87,649.69,0.6229844]
[1747794535207,1.119,650.87,649.7,1.75514859]
[1747794535407,1.119,650.87,649.71,0.6229844]
[1747794535613,1.119,650.87,649.72,0.6229844]
[1747794535812,1.119,650.87,649.73,1.75514859]
[1747794536008,1.119,650.87,649.74,0.6229844]
[1747794536212,1.119,650.87,649.75,0.6229844]
[1747794536407,1.119,650.87,649.76,0.6229844]
[1747794536613,1.119,650.87,649.77,0.6229844]
[1747794536912,1.119,650.87,649.78,0.6229844]
[1747794537113,1.119,650.87,649.79,0.6229844]
[1747794537412,1.119,650.87,649.8,0.6229844]
[1747794537608,5.33513848,651.11,649.81,0.6229844]
[1747794537813,3.8108132,650.83,649.82,0.6229844]
[1747794538115,3.8108132,650.83,649.6,1.838]
[1747794538313,3.8108132,650.83,649.61,0.62332081]
[1747794538509,3.8108132,650.83,649.62,0.62332081]
[1747794538714,3.8108132,650.83,649.6,1.838]
[1747794538715,3.8108132,650.83,649.63,2.06111284]
[1747794538914,3.8108132,650.83,649.64,0.62332081]
[1747794539108,3.8108132,650.83,649.65,1.75335734]
[1747794539313,3.8108132,650.83,649.66,0.62332081]
[1747794539510,3.8108132,650.83,649.67,1.75335734]
[1747794539715,3.8108132,650.83,649.68,0.62332081]
[1747794539915,3.8108132,650.83,649.69,1.75335734]
[1747794540112,3.8108132,650.83,649.7,1.75335734]
[1747794540311,3.8108132,650.83,649.71,0.62332081]
[1747794540512,3.8108132,650.83,649.72,0.62332081]
[1747794540716,5.0398132,650.83,649.73,0.62332081]
[1747794540918,5.0398132,650.83,649.74,0.62332081]
[1747794541117,5.0398132,650.83,649.75,0.93107631]
[1747794541318,5.0398132,650.83,649.76,0.62332081]
[1747794541513,5.0398132,650.83,649.77,0.62332081]
[1747794541713,5.0398132,650.83,649.78,0.62332081]
[1747794541915,5.0398132,650.83,649.79,0.62332081]
[1747794542116,5.0398132,650.83,649.8,0.62332081]
[1747794542313,5.0398132,650.83,649.75,0.3077555]
[1747794542617,5.0398132,650.83,649.76,0.62357784]
[1747794542814,5.0398132,650.83,649.81,0.3077555]
[1747794543014,5.0398132,650.83,649.82,0.62357784]
[1747794543217,5.0398132,650.83,649.83,0.62357784]
[1747794543414,5.0398132,650.83,649.81,0.3077555]
[1747794543618,5.0398132,650.83,649.82,0.62367447]
[1747794543820,5.0398132,650.83,649.83,0.62367447]
[1747794544020,5.0398132,650.83,649.84,0.62367447]
[1747794544222,5.0398132,650.83,649.81,0.3077555]
[1747794544418,5.0398132,650.83,649.82,0.93136716]
[1747794544621,5.0398132,650.83,649.83,0.62361166]
[1747794544821,5.0398132,650.83,649.84,1.75374532]
[1747794545017,5.0398132,650.83,649.85,0.62361166]
[1747794545320,5.0398132,650.83,649.86,0.62361166]
[1747794545518,5.0398132,650.83,649.87,0.62361166]
[1747794545719,5.0398132,650.83,649.88,0.93136716]
[1747794545916,5.0398132,650.83,649.89,0.62361166]
[1747794546121,5.0398132,650.83,649.9,0.62361166]
[1747794546424,5.0398132,650.83,649.91,0.62364159]
[1747794546623,5.0398132,650.83,649.92,0.3077555]
[1747794547925,5.0398132,650.83,649.47,0.33802786]
[1747794547926,5.0398132,650.83,649.93,0.3077555]
[1747794548325,5.0398132,650.83,649.93,1.7297555]
[1747794548826,5.0398132,650.83,649.94,0.93142026]
[1747794549019,5.0398132,650.83,649.94,0.3077555]
[1747794550426,1.229,650.83,649.95,0.3077555]
[1747794551730,1.229,650.83,649.93,1.422]
[1747794551925,1.229,650.83,649.94,0.62371449]
[1747794552122,1.229,650.83,649.93,1.422]
[1747794552422,1.229,650.83,649.94,0.6237155]
[1747794552621,1.229,650.83,649.93,1.422]
[1747794552826,1.229,650.83,649.94,0.62373404]
[1747794553028,1.229,650.83,649.93,1.422]
[1747794553228,1.229,650.83,649.95,0.30771315]
[1747794554329,1.229,650.83,649.93,1.422]
[1747794554529,1.229,650.83,649.94,0.62377057]
[1747794554722,1.229,650.83,649.93,1.422]
[1747794554923,1.229,650.83,649.94,0.62398112]
[1747794555124,1.229,650.83,649.93,1.422]
[1747794555325,1.229,650.83,649.94,0.62398112]
[1747794555523,1.229,650.83,649.93,1.422]
[1747794555723,1.229,650.83,649.94,0.62399841]
[1747794555926,1.229,650.83,649.93,1.422]
[1747794556127,1.229,650.83,649.94,0.62399677]
[1747794556328,1.229,650.83,649.95,0.62400057]
[1747794556525,1.229,650.83,649.93,1.422]
[1747794557830,1.229,650.83,649.94,0.30771239]
[1747794559731,1.229,650.83,649.93,1.422]
[1747794562529,1.229,650.83,649.94,0.30768604]
[1747794562735,1.229,650.83,649.95,0.62385507]
[1747794562928,1.229,650.83,649.96,0.62385507]
[1747794563138,1.229,650.83,649.97,0.62385507]
[1747794563334,1.229,650.83,649.98,0.62385507]
[1747794563535,1.229,650.83,649.99,0.62385507]
[1747794563836,1.229,650.83,650.0,0.62385507]
[1747794564036,1.229,650.83,650.01,0.62385507]
[1747794564235,1.229,650.83,649.99,0.30768604]
[1747794564430,1.229,650.83,650.0,0.62354467]
[1747794564630,1.229,650.83,649.99,0.30768604]
[1747794564833,1.229,650.83,650.0,0.30768604]
[1747794566635,1.229,650.83,650.01,0.30768604]
[1747794566839,1.229,650.83,650.02,0.62325693]
[1747794567035,1.229,650.83,650.01,0.30768604]
[1747794567339,1.229,650.83,650.02,2.55714235]
[1747794567638,1.229,650.83,650.03,2.0569807]
[1747794567838,1.229,650.83,650.04,0.62314235]
[1747794568038,1.229,650.83,650.05,0.62314235]
[1747794568238,1.229,650.83,650.06,1.74929466]
[1747794568441,1.229,650.83,650.07,0.62314235]
[1747794568640,1.229,650.83,650.08,1.74929466]
[1747794568836,1.229,650.83,650.09,0.62314235]
[1747794569042,1.229,650.83,650.1,0.62314235]
[1747794569336,1.229,650.83,650.11,1.74929466]
[1747794569535,1.229,650.83,650.12,0.62314235]
[1747794569736,1.229,650.83,650.13,0.62193144]
[1747794569936,1.229,650.83,650.14,0.62193144]
[1747794570138,1.229,650.83,650.15,0.62193144]
[1747794570338,1.229,650.83,650.09,0.30768604]
[1747794570539,1.229,650.83,650.1,0.62169424]
[1747794570741,1.229,650.83,650.11,0.62169424]
[1747794570938,1.229,650.83,650.12,0.92938028]
[1747794571245,1.229,650.83,650.12,0.30768604]
[1747794572244,1.229,650.83,650.13,0.30768604]
[1747794573440,1.229,650.83,650.02,1.934]
[1747794573644,1.229,650.83,650.03,0.62110994]
[1747794573839,1.229,650.83,650.04,0.62110994]
[1747794574045,1.229,650.83,650.05,1.744594]
[1747794574244,1.229,650.83,650.06,0.62110994]
[1747794574440,1.229,650.83,650.07,0.62110994]
[1747794574641,1.229,650.83,650.08,0.62110994]
[1747794574843,1.229,650.83,650.09,0.62110994]
[1747794575041,1.229,650.83,650.1,0.62110994]
[1747794575250,1.229,650.83,650.08,0.30756056]
[1747794575549,1.229,650.83,650.09,0.62082626]
[1747794575749,1.229,650.83,650.08,0.30756056]
[1747794575942,1.229,650.83,650.09,0.62079674]
[1747794576149,1.229,650.83,650.09,0.30756056]
[1747794576847,1.229,650.83,650.1,0.6206636]
[1747794577048,1.229,650.83,650.11,1.74340859]
[1747794577347,1.229,650.83,650.12,1.74340859]
[1747794577547,1.229,650.83,650.13,0.6206636]
[1747794577747,1.229,650.83,650.14,0.6206636]
[1747794578043,1.229,650.83,650.15,0.6206636]
[1747794578248,1.229,650.83,650.16,0.62054282]
[1747794578443,1.229,650.83,649.74,0.25350334]
[1747794578647,1.229,650.83,649.75,0.92799578]
[1747794578842,1.229,650.83,649.76,1.74281542]
[1747794579042,1.229,650.83,649.77,0.62042979]
[1747794579242,1.229,650.83,649.78,1.74281542]
[1747794579543,1.229,650.83,649.79,0.62042979]
[1747794579745,1.229,650.83,649.8,0.62042979]
[1747794579946,1.229,650.83,649.81,0.62042979]
[1747794580143,1.229,650.83,649.82,0.62042979]
[1747794580349,1.229,650.83,649.83,1.74281542]
[1747794580545,1.229,650.83,649.84,1.74281542]
[1747794580744,1.229,650.83,649.85,0.62042979]
[1747794580944,1.229,650.83,649.86,0.62042979]
[1747794581149,1.229,650.83,649.87,1.74281542]
[1747794581451,1.229,650.83,649.88,0.92799578]
[1747794581647,1.229,650.83,649.89,1.74281542]
[1747794581847,1.229,650.83,649.9,1.74281542]
[1747794582052,1.229,650.83,649.91,0.62042979]
[1747794582253,1.229,650.83,649.92,1.74281542]
[1747794582551,1.229,650.83,649.93,0.62042979]
[1747794582751,1.229,650.83,649.94,1.74281542]
[1747794583052,1.229,650.83,649.95,1.74281542]
[1747794583251,1.229,650.83,649.96,0.62042979]
[1747794583551,1.229,650.83,649.97,1.74281542]
[1747794583752,1.229,650.83,649.98,0.62042979]
[1747794583950,1.229,650.83,649.99,1.74281542]
[1747794584146,1.229,650.83,650.0,0.62042979]
[1747794584345,1.229,650.83,650.01,0.92799578]
[1747794584552,1.229,650.83,650.02,0.62042979]
[1747794584851,1.229,650.83,650.03,0.62042979]
[1747794585052,1.229,650.83,650.04,1.74281542]
[1747794585252,1.229,650.83,650.05,0.62042979]
[1747794585445,1.229,650.83,650.06,0.62042979]
[1747794585646,1.229,650.83,650.07,0.62042979]
[1747794585851,1.229,650.83,650.08,0.62042979]
[1747794586048,1.229,650.83,650.09,1.74281542]
[1747794586352,1.229,650.83,650.1,2.05038141]
[1747794586649,1.229,650.83,650.11,0.62042979]
[1747794586847,1.229,650.83,650.12,0.62042979]
[1747794587054,1.229,650.83,650.13,0.62042979]
[1747794587247,1.229,650.83,650.14,0.62042979]
[1747794587452,1.229,650.83,650.1,0.30756599]
[1747794587750,1.229,650.83,650.11,0.61981953]
[1747794587948,1.229,650.83,650.12,0.61981953]
[1747794588149,1.229,650.83,650.13,0.61981953]
[1747794588451,1.229,650.83,650.14,0.61981953]
[1747794588751,1.229,650.83,650.11,0.30756599]
[1747794588951,1.229,650.83,650.12,0.6198123]
[1747794589151,1.229,650.83,650.12,0.30756599]
[1747794589352,1.229,650.83,650.13,0.61981629]
[1747794589548,1.229,650.83,650.12,0.30756599]
[1747794589954,1.229,650.83,650.13,0.61983169]
[1747794590254,1.229,650.83,650.12,0.30756599]
[1747794590454,1.229,650.83,650.13,0.61984564]
[1747794590655,1.229,650.83,650.12,0.30756599]
[1747794590854,1.229,650.83,650.14,0.30756599]
[1747794592254,1.229,650.83,650.15,0.30756599]
[1747794593759,1.229,650.83,650.16,0.30756599]
[1747794594858,1.229,650.83,649.92,0.25350334]
[1747794595057,1.229,650.83,649.93,0.6200643]
[1747794595257,1.229,650.83,649.92,0.25350334]
[1747794595451,1.229,650.83,649.93,0.62009937]
[1747794595652,1.229,650.83,649.94,0.62009937]
[1747794595855,1.229,650.83,649.95,0.62009937]
[1747794596055,1.229,650.83,649.96,0.62009937]
[1747794596255,1.229,650.83,649.97,0.62009937]
[1747794596453,1.229,650.83,649.98,0.62009937]
[1747794596658,1.229,650.83,649.99,1.7414924]
[1747794596854,1.229,650.83,650.0,0.62009937]
[1747794597054,1.229,650.83,650.01,0.62021851]
[1747794597256,1.229,650.83,650.02,0.62021851]
[1747794597458,1.229,650.83,650.03,0.62021851]
[1747794597655,1.229,650.83,650.04,0.62021851]
[1747794597858,1.229,650.83,650.05,0.62021851]
[1747794598058,1.229,650.83,650.06,0.62021851]
[1747794598259,1.229,650.83,650.02,0.30761288]
[1747794598555,1.229,650.83,650.03,0.62033602]
[1747794598760,1.229,650.83,650.04,0.62039173]
[1747794598954,1.229,650.83,650.05,0.62039173]
[1747794599258,1.229,650.83,650.06,0.62039173]
[1747794599458,1.229,650.83,650.07,0.62039173]
[1747794599658,1.229,650.83,650.03,0.30761288]
[1747794599858,1.229,650.83,650.04,0.62049182]
[1747794600058,1.229,650.83,650.05,0.62049182]
[1747794600254,1.229,650.83,650.06,0.9281047]
[1747794600458,1.229,650.83,650.07,0.62048984]
[1747794600660,1.229,650.83,650.06,0.30761288]
[1747794600860,1.229,650.83,650.07,0.62048965]
[1747794601055,1.229,650.83,650.06,0.30761288]
[1747794601261,1.229,650.83,650.07,0.62049064]
[1747794601464,1.229,650.83,650.06,0.30761288]
[1747794601758,1.229,650.83,650.07,0.92810352]
[1747794601963,1.229,650.83,650.07,0.30761288]
[1747794602759,1.229,650.83,650.08,1.209]
[1747794603058,1.229,650.83,650.08,1.51661288]
[1747794603667,1.229,650.83,650.09,0.30761288]
[1747794604368,1.229,650.83,650.08,1.209]
[1747794607773,1.229,650.83,650.09,0.30761091]
[1747794608875,1.229,650.83,650.08,1.209]
[1747794615280,1.229,650.83,650.09,0.30761385]
[1747794616078,1.229,650.83,650.1,0.62146444]
[1747794616279,1.229,650.83,650.11,0.62156639]
[1747794616582,1.229,650.83,650.08,1.209]
[1747794616773,1.229,650.83,650.09,0.62159112]
[1747794616975,1.229,650.83,650.1,0.62159112]
[1747794617180,1.229,650.83,650.11,0.62159112]
[1747794617379,1.229,650.83,650.08,1.209]
[1747794617679,1.229,650.83,650.09,0.62172808]
[1747794617881,1.229,650.83,650.1,0.62172808]
[1747794618180,1.229,650.83,650.11,0.62172808]
[1747794618480,1.229,650.83,650.12,0.62185472]
[1747794618681,1.229,650.83,650.08,1.209]
[1747794618874,1.229,650.83,650.09,0.621876]
[1747794619078,1.229,650.83,650.1,0.621876]
[1747794619279,1.229,650.83,650.11,0.621876]
[1747794619580,1.229,650.83,650.12,0.621876]
[1747794619779,1.229,650.83,650.08,1.209]
[1747794619780,1.229,650.83,650.13,0.621876]
[1747794619976,1.229,650.83,650.08,1.209]
[1747794620174,1.229,650.83,650.09,0.62208852]
[1747794620378,1.229,650.83,650.1,0.62208852]
[1747794620581,1.229,650.83,650.11,0.62208852]
[1747794620881,1.229,650.83,650.12,0.62208852]
[1747794621182,1.229,650.83,650.13,0.62208852]
[1747794621380,1.229,650.83,650.14,0.62243667]
[1747794621576,1.229,650.83,649.87,0.25350334]
[1747794621777,1.229,650.83,649.88,0.62244835]
[1747794621978,1.229,650.83,649.87,0.25350334]
[1747794621979,1.229,650.83,649.89,1.75081212]
[1747794622179,1.229,650.83,649.9,0.62244835]
[1747794622380,1.229,650.83,649.91,1.75081212]
[1747794622583,1.229,650.83,649.92,0.62244835]